bitfinex/quotes_ETHUSD_20240925
["timestamp","ask_amount","ask_price","bid_price","bid_amount"]
[1727291926242,0.06509788,2589.0,2588.9,0.44192011]
[1727291926411,7.72369,2589.5,2588.9,4.30456011]
[1727291926732,3.8618,2589.5,2589.0,3.86248]
[1727291927028,3.92708788,2589.4,2589.0,0.947504]
[1727291928735,3.92708788,2589.4,2589.0,0.93835055]
[1727291929839,3.92708788,2589.4,2589.3,4.65134]
[1727291929840,0.06509788,2589.4,2589.3,4.65134]
[1727291930141,3.86148,2589.7,2589.3,1.640653]
[1727291930311,3.92684551,2589.6,2589.3,1.640653]
[1727291930900,3.92684551,2589.6,2589.1,4.65164]
[1727291931121,3.92684551,2589.6,2589.2,3.86214]
[1727291931303,3.92684551,2589.6,2589.1,4.65164]
[1727291931304,3.92684551,2589.6,2589.1,8.51387]
[1727291931507,0.06517551,2589.6,2589.2,3.86214]
[1727291932811,3.92681551,2589.6,2589.1,4.65153]
[1727291933012,3.86197,2589.4,2589.1,0.7893]
[1727291933408,3.86175,2589.5,2589.1,0.7893]
[1727291933607,3.86175,2589.5,2588.9,3.86253]
[1727291933608,3.86242,2589.1,2588.7,0.0378112]
[1727291933849,3.86279,2588.8,2588.7,0.0378112]
[1727291934152,3.92831484,2588.8,2588.7,0.0378112]
[1727291934363,3.92831484,2588.8,2587.9,7.4778112]
[1727291934364,0.7501,2588.7,2587.9,0.0378112]
[1727291934573,3.63329525,2588.2,2587.9,0.0378112]
[1727291934857,0.06548603,2588.1,2587.9,0.0378112]
[1727291935264,3.86365,2588.3,2587.9,0.0378112]
[1727291935265,3.86398,2588.0,2587.9,0.0378112]
[1727291935446,11.38906128,2588.0,2587.9,0.0378112]
[1727291935627,11.38906128,2588.0,2587.1,0.0378112]
[1727291935629,3.86518,2587.2,2587.1,0.0378112]
[1727291936039,3.92993804,2587.2,2587.1,0.0378112]
[1727291938771,0.06475804,2587.2,2587.1,0.0378112]
[1727291938983,0.8263,2587.3,2587.1,0.0378112]
[1727291939136,0.06475804,2587.2,2587.1,0.0378112]
[1727291939338,3.86518,2587.2,2587.1,0.0378112]
[1727291939577,3.92993804,2587.2,2587.1,0.0378112]
[1727291940277,4.79206384,2587.2,2587.1,0.0378112]
[1727291941780,4.88871675,2587.2,2587.1,0.0378112]
[1727291942154,7.88871675,2587.2,2587.1,0.0378112]
[1727291942362,8.58716384,2587.2,2587.1,0.0378112]
[1727291944323,8.9907376,2587.2,2587.1,0.0378112]
[1727291945678,8.58716384,2587.2,2587.1,0.0378112]
[1727291945927,8.99074475,2587.2,2587.1,0.0378112]
[1727291946221,11.54074475,2587.2,2587.1,0.0378112]
[1727291947400,11.54074475,2587.2,2586.3,0.0378112]
[1727291947401,3.86637,2586.4,2586.3,0.0378112]
[1727291947604,4.67817,2586.4,2586.3,0.0378112]
[1727291947906,6.0416889,2586.4,2586.3,0.0378112]
[1727291948576,9.0416889,2586.4,2586.3,0.0378112]
[1727291950119,3.06043547,2586.4,2586.3,0.0378112]
[1727291950379,6.92680547,2586.4,2586.3,0.0378112]
[1727291951019,11.41323976,2586.4,2586.3,0.0378112]
[1727291952566,12.19943976,2586.4,2586.3,0.0378112]
[1727291956044,6.92680547,2586.4,2586.3,0.0378112]
[1727291956617,8.40981764,2586.4,2586.3,0.0378112]
[1727291956872,8.30723808,2586.4,2586.3,0.0378112]
[1727291957020,8.36374303,2586.4,2586.3,0.0378112]
[1727291959529,13.60557732,2586.4,2586.3,0.0378112]
[1727291966923,8.03983948,2586.4,2586.3,0.0378112]
[1727291967125,7.28443948,2586.4,2586.3,0.0378112]
[1727291969843,4.32658357,2586.4,2586.3,0.0378112]
[1727291970552,3.92287495,2586.4,2586.3,0.0378112]
[1727291971641,4.3264942,2586.4,2586.3,0.0378112]
[1727291972340,3.92287495,2586.4,2586.3,0.0378112]
[1727291975012,0.05650495,2586.4,2586.3,0.0378112]
[1727291975320,0.05650495,2586.4,2586.3,0.8709112]
[1727291975470,3.86614,2586.6,2586.3,1.34467132]
[1727291975671,0.05609626,2586.4,2586.3,1.34467132]
[1727291975893,3.86594,2586.7,2586.3,1.34467132]
[1727291976323,0.0568941,2586.6,2586.3,1.34467132]
[1727291978285,3.9230441,2586.6,2586.3,1.34467132]
[1727291978738,0.0568941,2586.6,2586.4,5.31953429]
[1727291979039,3.86501,2587.4,2586.8,3.86569]
[1727291979345,11.22466,2587.6,2586.9,0.8331]
[1727291979346,3.86526,2587.2,2586.9,0.8331]
[1727291979937,0.05371497,2587.1,2586.9,0.8331]
[1727291981006,3.86526,2587.2,2586.9,0.8331]
[1727291981211,0.05371497,2587.0,2586.9,0.8331]
[1727291981415,3.86506,2587.3,2586.9,0.8331]
[1727291981655,0.05371497,2587.0,2586.9,0.8331]
[1727291981819,3.86506,2587.3,2586.9,0.8331]
[1727291982034,0.05371497,2587.0,2586.9,0.8331]
[1727291982635,7.73046,2587.2,2586.9,0.8331]
[1727291982795,0.05371497,2587.0,2586.9,0.8331]
[1727291982995,7.73046,2587.2,2586.9,0.8331]
[1727291983227,0.05371497,2587.0,2586.9,0.8331]
[1727291983738,3.86519,2587.2,2586.9,0.8331]
[1727291983897,0.05371497,2587.0,2586.9,0.8331]
[1727291984103,3.86519,2587.2,2586.9,0.8331]
[1727291984444,0.05371497,2587.1,2586.9,0.8331]
[1727291984602,3.86548,2587.0,2586.9,0.8331]
[1727291984807,3.86519,2587.2,2586.9,0.8331]
[1727291985008,0.05371497,2587.0,2586.9,0.8331]
[1727291985655,3.86519,2587.2,2586.9,1.303001]
[1727291985838,0.05371497,2587.0,2586.9,1.303001]
[1727291986008,3.86519,2587.2,2586.9,1.303001]
[1727291986648,0.05371497,2587.1,2586.9,1.303001]
[1727291989821,3.91912497,2587.1,2586.9,1.303001]
[1727291990014,3.91912497,2587.1,2586.9,0.8331]
[1727291990411,3.86548,2587.0,2586.9,0.8331]
[1727291990750,3.91919497,2587.0,2586.9,0.8331]
[1727291991117,0.05371497,2587.0,2586.9,0.8331]
[1727291992559,3.86521,2587.2,2586.9,0.8331]
[1727291992856,0.05371497,2587.0,2586.9,0.8331]
[1727291993054,3.86533,2587.1,2586.9,0.8331]
[1727291993227,0.05371497,2587.0,2586.9,0.8331]
[1727291994924,3.86458,2587.6,2586.9,5.33438991]
[1727291995154,0.05423073,2587.5,2587.3,3.86498]
[1727291995341,3.8643,2587.8,2587.4,0.7698]
[1727291995870,4.66668,2588.0,2587.4,5.484582]
[1727291995871,3.86422,2587.9,2587.4,5.484582]
[1727291996160,3.86408,2588.0,2587.4,5.484582]
[1727291996353,3.8643,2587.8,2587.4,1.619782]
[1727291997838,7.72873,2587.8,2587.4,1.619782]
[1727291998252,3.86444,2587.7,2587.4,1.619782]
[1727292000333,3.8643,2587.8,2587.4,5.484642]
[1727292000540,3.86458,2587.6,2587.4,0.7698]
[1727292000770,3.865,2587.4,2587.2,0.8213]
[1727292000948,3.9202434,2587.3,2586.7,3.8213]
[1727292001138,3.9202434,2587.3,2586.8,4.9918]
[1727292001336,3.9202434,2587.3,2586.8,3.86567]
[1727292001542,3.9202434,2587.3,2586.9,0.8213]
[1727292001758,3.9202434,2587.3,2586.9,4.68692]
[1727292001967,3.86525,2587.2,2586.9,0.8213]
[1727292002267,3.86533,2587.1,2586.9,0.8213]
[1727292002430,3.9205434,2587.1,2586.9,0.8213]
[1727292002972,0.0552134,2587.1,2586.9,0.8213]
[1727292003172,0.0552134,2587.1,2586.9,5.155641]
[1727292003471,7.72938,2587.6,2587.0,4.68678]
[1727292003709,3.8648,2587.5,2587.0,4.68678]
[1727292004567,3.86469,2587.6,2587.0,4.68678]
[1727292004568,3.86488,2587.4,2587.0,4.68678]
[1727292005482,3.86469,2587.6,2587.1,3.86532]
[1727292005982,3.86469,2587.6,2587.1,5.13189769]
[1727292007197,3.0,2587.9,2587.1,5.13189769]
[1727292007198,3.8648,2587.5,2587.2,0.8072]
[1727292007683,3.86499,2587.4,2587.2,0.8072]
[1727292007889,3.86488,2587.4,2587.2,0.8072]
[1727292009168,3.86454,2587.7,2587.2,0.8072]
[1727292009347,7.72907,2587.7,2587.2,4.67231]
[1727292009548,3.86452,2587.7,2587.3,3.86503]
[1727292009883,3.7887,2588.2,2587.5,0.8072]
[1727292009884,0.7887,2588.2,2587.5,0.8072]
[1727292010092,3.86416,2587.9,2587.5,4.67193]
[1727292010248,3.86416,2587.9,2587.5,0.8072]
[1727292010249,3.86439,2587.8,2587.5,0.8072]
[1727292010472,3.96100363,2587.8,2587.5,0.8072]
[1727292010765,3.86416,2587.9,2587.5,0.8072]
[1727292011300,3.86438,2587.8,2587.5,0.8072]
[1727292011457,3.86416,2587.9,2587.5,0.8072]
[1727292012094,3.86416,2587.9,2587.5,5.525602]
[1727292012260,3.86398,2588.0,2587.5,9.390252]
[1727292012456,4.26673814,2588.2,2587.6,0.7811]
[1727292012790,3.8636,2588.3,2587.9,0.7811]
[1727292013147,3.86329,2588.5,2588.0,3.86389]
[1727292013493,4.66632,2588.9,2587.9,4.64515]
[1727292013689,3.86331,2588.5,2588.0,3.86398]
[1727292014074,3.86346,2588.4,2587.9,8.50919]
[1727292014273,3.86346,2588.4,2588.0,3.86398]
[1727292014469,3.86346,2588.4,2588.0,4.714892]
[1727292014992,3.86329,2588.5,2588.1,0.8208]
[1727292015994,0.05567057,2588.4,2588.1,0.8208]
[1727292016702,3.86362,2588.3,2588.0,0.850912]
[1727292016909,3.92070042,2588.3,2587.9,0.8153]
[1727292018261,3.92070042,2588.3,2587.9,4.67943]
[1727292018677,7.78437042,2588.3,2587.9,0.8153]
[1727292018863,3.92070042,2588.3,2587.9,1.73916917]
[1727292019257,3.92070042,2588.3,2587.9,5.60328917]
[1727292019670,0.05708042,2588.3,2588.1,0.7955]
[1727292019896,0.05708042,2588.3,2588.1,4.65926]
[1727292020191,3.86319,2588.6,2588.2,0.852323]
[1727292020897,3.86303,2588.7,2588.2,4.715933]
[1727292021260,3.86303,2588.7,2588.2,0.852323]
[1727292021261,3.86302,2588.7,2588.2,0.852323]
[1727292021459,3.86346,2588.4,2588.2,0.852323]
[1727292021658,7.72693,2588.4,2588.1,0.7955]
[1727292021900,0.09658224,2588.6,2588.1,0.7955]
[1727292021901,3.86355,2588.3,2588.1,0.7955]
[1727292022269,3.86339,2588.4,2588.1,0.7955]
[1727292022509,3.86365,2588.3,2588.1,0.7955]
[1727292023079,3.86339,2588.4,2588.1,0.7955]
[1727292024471,3.86359,2588.3,2588.1,0.7955]
[1727292024697,3.86339,2588.4,2588.1,0.7955]
[1727292025097,3.86354,2588.3,2588.1,0.7955]
[1727292025980,3.86354,2588.3,2587.9,1.71926917]
[1727292026601,3.86377,2588.2,2587.9,0.7954]
[1727292026779,3.53957,2588.2,2587.9,0.7954]
[1727292027815,3.86355,2588.3,2587.9,0.7954]
[1727292027995,7.72723,2588.3,2587.9,0.7954]
[1727292028393,3.86384,2588.1,2587.9,0.7954]
[1727292028696,3.86384,2588.1,2587.7,1.74492579]
[1727292029918,3.86384,2588.1,2587.7,5.60933579]
[1727292030238,3.86384,2588.1,2587.7,1.74492579]
[1727292030594,3.64481591,2588.7,2587.3,0.7649]
[1727292030595,3.8644,2587.8,2587.3,0.7649]
[1727292030799,3.86482,2587.5,2587.3,0.7649]
[1727292031139,3.86481,2587.5,2587.1,3.86533]
[1727292031444,3.91826123,2587.4,2586.8,0.7649]
[1727292031606,3.86508,2587.3,2586.8,4.6306]
[1727292031932,3.86495,2587.4,2586.8,0.7649]
[1727292032243,3.91851123,2587.2,2586.8,0.7649]
[1727292032391,0.05331123,2587.1,2586.8,0.7649]
[1727292032735,0.05331123,2587.1,2586.8,5.48035]
[1727292032897,0.05331123,2587.1,2586.8,9.34612]
[1727292033243,3.86451,2587.7,2587.0,3.86548]
[1727292033422,0.05331123,2587.6,2587.0,3.86548]
[1727292033732,3.91797123,2587.6,2587.1,0.75102959]
[1727292035195,3.91797123,2587.6,2587.1,4.61630959]
[1727292035395,0.09662592,2587.5,2587.1,0.75102959]
[1727292035716,3.86528,2587.2,2586.8,0.7649]
[1727292035898,0.0966409,2587.1,2586.8,0.7649]
[1727292036138,0.0966409,2587.1,2586.6,0.7649]
[1727292036139,3.86549,2587.0,2586.6,0.7649]
[1727292036298,3.86549,2587.0,2586.6,1.151522]
[1727292036713,0.05331123,2586.9,2586.6,1.151522]
[1727292037057,3.9619709,2587.1,2586.6,1.151522]
[1727292037227,0.05331123,2587.0,2586.6,1.151522]
[1727292037413,4.01546784,2587.0,2586.5,3.86613]
[1727292037950,4.01546784,2587.0,2586.6,3.86606]
[1727292037951,0.05331123,2587.0,2586.6,3.86606]
[1727292038155,4.01544662,2587.0,2586.5,3.86613]
[1727292038324,0.14995662,2587.0,2586.6,3.86607]
[1727292038526,0.05331123,2587.0,2586.6,0.8518]
[1727292038783,0.05331123,2587.0,2586.6,4.71783]
[1727292038953,3.86528,2587.2,2586.6,4.71783]
[1727292039247,0.05331123,2586.9,2586.6,4.71783]
[1727292039457,0.05331123,2586.8,2586.6,4.71783]
[1727292039618,3.86528,2587.2,2586.7,4.724316]
[1727292039954,0.05331123,2587.1,2586.7,3.86592]
[1727292040161,0.05331123,2587.1,2586.8,4.65153]
[1727292040449,4.63622,2587.3,2586.8,0.7858]
[1727292040653,0.05331123,2587.2,2586.8,1.250972]
[1727292040944,4.63622,2587.3,2586.8,5.116652]
[1727292040945,0.7711,2587.3,2586.8,5.116652]
[1727292041114,0.0522999,2587.1,2586.8,5.116652]
[1727292041315,0.7711,2587.3,2586.9,0.8982492]
[1727292041522,0.0522999,2587.0,2586.9,0.8982492]
[1727292041723,0.7711,2587.3,2586.9,0.8982492]
[1727292041948,0.0522999,2587.0,2586.9,0.8982492]
[1727292042110,3.86496,2587.4,2586.9,0.8982492]
[1727292042314,0.8097,2587.5,2586.9,4.7638792]
[1727292042315,0.0522999,2587.0,2586.9,4.7638792]
[1727292042516,3.86463,2587.6,2587.1,3.86525]
[1727292042709,6.86451,2587.7,2587.2,1.179725]
[1727292042953,1.16985511,2587.8,2587.3,3.86493]
[1727292043264,4.63204,2587.8,2587.3,3.86493]
[1727292043710,4.63204,2587.8,2587.3,7.72987]
[1727292043913,4.63204,2587.8,2587.4,0.8909595]
[1727292044752,4.63204,2587.8,2587.2,1.179725]
[1727292044953,3.86407,2588.0,2587.3,3.86494]
[1727292045198,3.86414,2587.9,2587.3,3.86494]
[1727292045356,3.86407,2588.0,2587.3,3.86494]
[1727292045357,3.86407,2588.0,2587.4,3.86478]
[1727292045517,3.86407,2588.0,2587.6,0.8055]
[1727292045721,4.68777,2588.1,2587.6,5.523553]
[1727292045932,11.22378,2588.2,2587.7,3.86443]
[1727292046117,0.05151233,2588.0,2587.7,3.86443]
[1727292046328,11.22378,2588.2,2587.7,3.86443]
[1727292046523,0.05151233,2587.9,2587.7,5.16770989]
[1727292046821,4.62504,2588.4,2587.8,3.86428]
[1727292046822,8.48856,2588.4,2587.8,3.86428]
[1727292047025,8.48856,2588.4,2587.7,1.30327989]
[1727292047026,0.7616,2588.4,2587.7,1.30327989]
[1727292047358,3.86376,2588.2,2587.7,1.30327989]
[1727292047534,3.86376,2588.2,2587.8,0.59732699]
[1727292047734,4.62507,2588.4,2587.8,0.59732699]
[1727292047948,3.86355,2588.3,2587.8,4.46159699]
[1727292053268,3.86377,2588.2,2587.8,0.59732699]
[1727292054479,3.86357,2588.3,2587.8,0.59732699]
[1727292054650,3.86375,2588.2,2587.8,0.59732699]
[1727292056036,3.96034858,2588.2,2587.8,0.59732699]
[1727292057781,3.86384,2588.1,2587.8,0.59732699]
[1727292058684,0.7616,2588.4,2587.6,0.8055]
[1727292058880,3.86391,2588.1,2587.6,4.67006]
[1727292059181,3.86443,2587.7,2587.6,0.8055]
[1727292059382,3.86451,2587.7,2587.3,0.7525]
[1727292059582,3.86451,2587.7,2587.3,1.514256]
[1727292059774,0.0523778,2587.6,2587.3,1.514256]
[1727292060147,0.0523778,2587.6,2587.3,5.379276]
[1727292060348,0.0523778,2587.6,2587.3,1.514256]
[1727292060551,0.0523778,2587.6,2587.3,5.379236]
[1727292060780,0.0523778,2587.6,2587.4,0.9244296]
[1727292062587,3.86445,2587.7,2587.4,0.9244296]
[1727292062755,0.0523778,2587.5,2587.4,0.9244296]
[1727292062957,3.86445,2587.7,2587.4,0.9244296]
[1727292063291,3.86429,2587.8,2587.4,0.9244296]
[1727292063512,0.09661692,2587.8,2587.3,0.7525]
[1727292063693,0.09661692,2587.8,2587.0,0.7628]
[1727292063694,3.86505,2587.3,2587.0,0.7628]
[1727292063873,3.8654,2587.1,2586.7,0.7628]
[1727292064055,0.0523778,2587.0,2586.7,0.7628]
[1727292065556,0.0523778,2587.0,2586.5,3.86614]
[1727292065557,3.9178778,2587.0,2586.4,0.8246]
[1727292065756,3.9178778,2587.0,2586.4,5.16383312]
[1727292065983,7.7834378,2587.0,2586.4,5.16383312]
[1727292066170,3.9178778,2587.0,2586.4,5.16383312]
[1727292066382,3.9178778,2587.0,2586.4,1.29748312]
[1727292066612,3.9178778,2587.0,2586.5,3.86622]
[1727292066796,3.86565,2586.9,2586.4,1.29748312]
[1727292067003,3.86565,2586.9,2586.5,0.52017143]
[1727292067171,0.05238752,2586.8,2586.5,0.52017143]
[1727292067794,3.86562,2587.0,2586.5,0.52017143]
[1727292067995,0.05238752,2586.7,2586.5,0.52017143]
[1727292068199,3.86562,2587.0,2586.5,0.52017143]
[1727292068509,0.05238752,2586.6,2586.5,0.52017143]
[1727292068685,3.86567,2586.9,2586.5,0.52017143]
[1727292068884,0.05238752,2586.6,2586.5,0.52017143]
[1727292069085,3.86567,2586.9,2586.5,0.52017143]
[1727292069410,0.05238752,2586.8,2586.5,0.52017143]
[1727292070441,0.05238752,2586.8,2586.5,4.38638143]
[1727292070608,3.86533,2587.1,2586.6,4.38705814]
[1727292070773,0.05238752,2586.7,2586.6,4.38705814]
[1727292070981,3.86512,2587.3,2586.7,4.62845]
[1727292071221,3.8652,2587.2,2586.7,5.94649955]
[1727292071413,3.91667339,2587.2,2586.7,5.94649955]
[1727292075734,3.91667339,2587.2,2586.9,3.86548]
[1727292075735,0.05147339,2587.2,2586.9,3.86548]
[1727292075942,3.86487,2587.5,2587.0,4.251948]
[1727292076123,0.05153175,2587.1,2587.0,4.251948]
[1727292076428,3.86491,2587.4,2587.0,1.217648]
[1727292076639,0.05153175,2587.1,2587.0,1.217648]
[1727292076790,3.86474,2587.5,2587.0,1.217648]
[1727292076989,3.86499,2587.4,2587.0,0.8311]
[1727292077295,3.91652175,2587.4,2587.0,0.8311]
[1727292077495,3.91652175,2587.4,2587.1,3.86532]
[1727292077496,0.05153175,2587.4,2587.1,3.86532]
[1727292077805,7.72943,2587.6,2587.1,3.86532]
[1727292078015,0.05153175,2587.3,2587.1,3.86532]
[1727292078199,0.8109,2587.7,2587.1,4.72151]
[1727292078403,0.8109,2587.7,2587.1,3.86523]
[1727292078404,0.05153175,2587.2,2587.1,3.86523]
[1727292078624,3.8644,2587.8,2587.3,3.86492]
[1727292078892,3.86436,2587.8,2587.3,3.86492]
[1727292079106,3.86436,2587.8,2587.3,7.72983]
[1727292079318,3.86436,2587.8,2587.4,0.8947453]
[1727292079995,3.86409,2588.0,2587.4,0.8947453]
[1727292079996,3.86417,2587.9,2587.4,4.7596153]
[1727292080799,3.86409,2588.0,2587.5,4.69575]
[1727292081930,11.22378,2588.2,2587.6,3.86451]
[1727292081931,3.86383,2588.1,2587.6,3.86451]
[1727292082094,3.86383,2588.1,2587.7,0.469561]
[1727292082435,7.72807,2588.0,2587.7,0.469561]
[1727292082615,3.86401,2588.0,2587.5,4.69583]
[1727292083145,3.86414,2587.9,2587.5,4.69583]
[1727292083626,3.86401,2588.0,2587.5,4.69583]
[1727292084212,3.86414,2587.9,2587.5,4.69583]
[1727292084405,3.86401,2588.0,2587.6,0.55905753]
[1727292084747,7.72811,2588.0,2587.6,0.55905753]
[1727292084920,3.86414,2587.9,2587.6,0.55905753]
[1727292086631,3.86414,2587.9,2587.5,0.8311]
[1727292087633,3.86414,2587.9,2587.5,4.69583]
[1727292088036,3.86414,2587.9,2587.5,0.8311]
[1727292090540,3.86452,2587.7,2587.5,0.8311]
[1727292091239,3.86473,2587.5,2587.2,0.7944]
[1727292091596,0.05292238,2587.4,2587.2,0.7944]
[1727292093422,3.86459,2587.6,2587.2,0.7944]
[1727292093623,0.05292238,2587.3,2587.2,0.7944]
[1727292093807,3.86459,2587.6,2587.2,1.646905]
[1727292093995,0.05265986,2587.3,2587.2,1.646905]
[1727292094199,3.86459,2587.6,2587.2,1.646905]
[1727292094611,0.05265986,2587.5,2587.2,5.512065]
[1727292095329,0.05265986,2587.5,2587.2,9.377165]
[1727292095532,3.86444,2587.7,2587.2,9.377165]
[1727292095533,3.86461,2587.6,2587.3,0.9377165]
[1727292095753,0.05265986,2587.5,2587.2,4.6595]
[1727292096312,3.86505,2587.3,2586.9,0.7796]
[1727292096516,0.05270848,2587.2,2586.9,4.64512]
[1727292096722,3.86455,2587.7,2587.0,3.86534]
[1727292097050,0.05268903,2587.6,2587.2,3.86517]
[1727292097444,3.91726903,2587.6,2587.2,3.86517]
[1727292098235,0.05268903,2587.6,2587.2,7.73028]
[1727292098711,0.05268903,2587.6,2587.2,3.86511]
[1727292099446,0.05268903,2587.6,2587.2,7.73018]
[1727292099648,0.05268903,2587.6,2587.3,4.64461]
[1727292100038,8.49942,2587.8,2587.3,4.64461]
[1727292100233,0.05268903,2587.5,2587.3,0.7796]
[1727292100551,0.05268903,2587.4,2587.3,0.7796]
[1727292100713,3.86452,2587.7,2587.3,0.7796]
[1727292100912,0.05268903,2587.6,2587.3,0.7796]
[1727292102715,3.91737903,2587.6,2587.3,0.7796]
[1727292103548,3.86507,2587.3,2587.1,0.7796]
[1727292103710,0.05223202,2587.2,2587.1,0.7796]
[1727292103912,3.86507,2587.3,2586.9,1.63068]
[1727292104109,0.05223202,2587.2,2586.9,1.63068]
[1727292104331,3.86518,2587.2,2586.9,0.7796]
[1727292104629,3.91756395,2587.1,2586.9,0.7796]
[1727292105052,0.05216395,2587.1,2586.9,0.7796]
[1727292106165,3.91757395,2587.1,2586.9,0.7796]
[1727292106536,0.05216395,2587.1,2586.9,0.7796]
[1727292106755,3.86517,2587.3,2586.9,0.7796]
[1727292107073,3.91720835,2587.2,2586.9,0.7796]
[1727292108700,0.09663565,2587.1,2586.6,4.68427]
[1727292108826,3.86543,2587.1,2586.7,1.155046]
[1727292109134,0.05193054,2587.0,2586.7,1.155046]
[1727292109546,0.05193054,2587.0,2586.7,5.020896]
[1727292109751,3.86476,2587.5,2587.0,3.86542]
[1727292109926,0.05189163,2587.4,2587.0,3.86542]
[1727292110726,0.05189163,2587.4,2587.1,3.86522]
[1727292110923,3.86466,2587.6,2587.2,3.86515]
[1727292111158,0.05195972,2587.5,2587.2,3.86515]
[1727292111363,0.05195972,2587.5,2587.2,4.720027]
[1727292111769,0.05195972,2587.5,2587.2,0.854877]
[1727292112748,0.05195972,2587.5,2587.2,4.720037]
[1727292112943,0.05195972,2587.5,2587.2,0.854877]
[1727292113384,3.86492,2587.4,2587.2,0.854877]
[1727292113679,3.86492,2587.4,2587.1,0.8182]
[1727292113882,0.05199864,2587.3,2587.1,0.8182]
[1727292114573,0.05199864,2587.2,2587.1,0.8182]
[1727292114969,3.86483,2587.5,2587.1,0.8182]
[1727292115148,3.86536,2587.1,2586.7,12.12398]
[1727292115365,3.86548,2587.0,2586.7,8.2582]
[1727292115569,0.05197918,2586.9,2586.7,0.8182]
[1727292116375,3.86536,2587.1,2586.7,1.586641]
[1727292117055,0.05182357,2587.0,2586.7,1.586641]
[1727292118960,0.05182357,2587.0,2586.7,5.452541]
[1727292119144,3.86519,2587.2,2586.7,5.452541]
[1727292119357,0.05175548,2587.1,2586.7,5.452471]
[1727292119697,0.05175548,2587.1,2586.8,0.5452471]
[1727292120609,3.91708548,2587.1,2586.7,1.586641]
[1727292121105,0.05175548,2587.1,2586.7,1.586641]
[1727292121278,0.05045308,2587.1,2586.7,5.452491]
[1727292122370,0.05045308,2587.1,2586.8,0.9318491]
[1727292123294,0.05045308,2587.1,2586.8,4.7975991]
[1727292124691,0.05045308,2587.1,2586.9,3.86553]
[1727292124909,0.05045308,2587.1,2587.0,8.28219591]
[1727292125205,7.36,2587.6,2587.2,3.86516]
[1727292125363,3.86432,2587.8,2587.2,4.43039471]
[1727292125769,0.76983486,2587.9,2587.2,0.56523471]
[1727292125770,3.86467,2587.6,2587.2,0.56523471]
[1727292125976,3.86475,2587.5,2587.0,4.63729]
[1727292126172,3.96137254,2587.5,2587.0,8.50267]
[1727292126371,0.09662254,2587.5,2587.1,4.715587]
[1727292126786,3.86483,2587.5,2587.0,4.63728]
[1727292126981,3.86467,2587.6,2587.0,4.63728]
[1727292126982,3.86489,2587.4,2587.0,4.63728]
[1727292127413,3.86489,2587.4,2586.8,0.7797]
[1727292127616,3.96165953,2587.3,2586.8,4.64548]
[1727292128520,3.86521,2587.2,2586.8,0.7797]
[1727292129013,0.14818599,2587.1,2586.8,0.7797]
[1727292129580,3.86555,2587.0,2586.8,0.7797]
[1727292129789,3.86555,2587.0,2586.4,3.7797]
[1727292129790,0.09664595,2586.9,2586.4,3.7797]
[1727292129981,0.05146891,2586.8,2586.5,3.86621]
[1727292130285,3.86554,2587.0,2586.5,3.86621]
[1727292130486,0.8054,2587.1,2586.5,3.86621]
[1727292130685,0.05132299,2587.0,2586.7,0.7797]
[1727292130989,3.86549,2587.0,2586.7,0.7797]
[1727292131190,0.05131326,2586.9,2586.7,0.7797]
[1727292131602,3.86527,2587.2,2586.7,0.7797]
[1727292131910,0.05134245,2586.8,2586.7,0.7797]
[1727292132101,3.86548,2587.0,2586.7,0.7797]
[1727292132272,7.73059,2587.2,2586.7,0.7797]
[1727292132473,3.86534,2587.1,2586.7,0.7797]
[1727292132715,0.05133272,2587.0,2586.7,0.7797]
[1727292132880,0.05133272,2587.0,2586.7,0.7571]
[1727292133085,0.05133272,2587.0,2586.7,5.471845]
[1727292133282,4.67047,2587.3,2586.7,5.471845]
[1727292133504,0.05125491,2587.2,2586.7,5.471845]
[1727292133814,0.05125491,2587.2,2586.7,1.606025]
[1727292134017,0.05125491,2587.2,2587.0,3.86538]
[1727292134188,4.69072,2587.5,2587.1,0.386538]
[1727292134391,0.05125491,2587.4,2587.1,0.7571]
[1727292134706,0.05125491,2587.4,2587.1,4.62242]
[1727292135023,0.05125491,2587.4,2587.2,3.8651]
[1727292135427,3.86453,2587.7,2587.2,3.8651]
[1727292135605,0.05134246,2587.3,2587.2,3.8651]
[1727292135805,4.69027,2587.8,2587.2,0.848763]
[1727292135806,3.96122117,2587.6,2587.2,0.848763]
[1727292135991,3.96122117,2587.6,2587.0,3.86543]
[1727292135992,0.05134246,2587.3,2587.0,3.86543]
[1727292136200,3.86481,2587.5,2587.0,3.86543]
[1727292136521,3.8646,2587.6,2586.9,4.62272]
[1727292136522,0.05144946,2587.2,2586.9,4.62272]
[1727292136826,0.05144946,2587.1,2586.9,5.5564475]
[1727292137009,0.05144946,2587.1,2586.9,1.6908275]
[1727292137190,0.92253527,2587.3,2586.9,1.6908275]
[1727292137394,3.91670946,2587.2,2586.9,0.7571]
[1727292137723,3.91670946,2587.2,2586.7,0.848925]
[1727292137724,3.91671946,2587.2,2586.7,0.7571]
[1727292138067,3.91671946,2587.2,2586.5,0.7571]
[1727292138068,3.86565,2586.9,2586.5,0.7571]
[1727292138378,0.05145918,2586.8,2586.5,0.7571]
[1727292138626,0.05145918,2586.8,2586.5,1.60984612]
[1727292139029,0.05145918,2586.8,2586.7,3.86592]
[1727292139322,0.05129382,2586.8,2586.6,3.86602]
[1727292139519,3.8654,2587.1,2586.6,3.86602]
[1727292139717,3.8654,2587.1,2586.6,4.80021561]
[1727292139718,0.05129382,2587.0,2586.6,4.80021561]
[1727292139883,0.05129382,2587.0,2586.6,0.93419561]
[1727292140084,0.05129382,2587.0,2586.6,4.80025561]
[1727292140922,4.01341747,2587.0,2586.6,3.86606]
[1727292141111,3.91677382,2587.0,2586.6,3.86606]
[1727292141512,0.05129382,2587.0,2586.6,3.86606]
[1727292141837,3.86549,2587.0,2586.6,3.86606]
[1727292142045,0.05115762,2586.9,2586.6,3.86606]
[1727292142247,0.05115762,2586.9,2586.5,0.7571]
[1727292142444,4.01344462,2586.9,2586.5,0.7571]
[1727292142624,3.86584,2586.8,2586.5,0.7571]
[1727292143233,3.86594,2586.7,2586.3,4.6613412]
[1727292143420,3.91709762,2586.7,2586.3,5.26856303]